bitfinex/quotes_SOLUSD_20220119
["timestamp","ask_amount","ask_price","bid_price","bid_amount"]
[1642560331226,2.836,141.04,140.98,10.35]
[1642560331431,2.836,141.04,140.99,42.30049473]
[1642560331628,47.52379043,141.05,140.99,42.30049473]
[1642560331832,47.52379043,141.05,141.0,10.8874]
[1642560332228,47.52379043,141.05,141.0,10.6374]
[1642560332429,47.52379043,141.05,140.99,42.30049473]
[1642560332628,3.086,141.04,140.99,10.1]
[1642560333629,2.836,141.04,140.99,48.82658407]
[1642560334029,2.836,141.06,141.0,0.25]
[1642560334230,2.836,141.07,141.0,0.25]
[1642560334433,2.835,141.08,141.0,0.25]
[1642560335233,38.38192721,141.08,141.0,0.25]
[1642560335432,0.25,141.07,141.02,47.42112835]
[1642560338435,0.25,141.07,141.01,20.7367]
[1642560339332,0.25,141.07,141.02,43.1534331]
[1642560340236,49.01852721,141.08,141.02,43.1534331]
[1642560340435,46.18352721,141.08,141.02,43.1534331]
[1642560340834,46.18352721,141.08,141.01,10.1]
[1642560341035,8.835,141.07,141.01,10.1]
[1642560341233,19.7228,141.07,141.01,10.1]
[1642560341835,19.7228,141.07,141.01,50.53748328]
[1642560342034,13.7228,141.07,141.01,50.53748328]
[1642560349850,3.085,141.07,141.01,61.17428328]
[1642560350052,0.25,141.07,141.01,61.17428328]
[1642560351647,10.8876,141.07,141.01,50.53748328]
[1642560353350,46.03881852,141.06,141.01,50.53748328]
[1642560353550,52.03881852,141.06,141.01,50.53748328]
[1642560353750,0.25,141.05,141.01,50.53748328]
[1642560355453,46.03881852,141.06,141.01,50.53748328]
[1642560355653,46.03881852,141.06,141.02,0.25]
[1642560355857,1.99586555,141.07,141.02,0.25]
[1642560356055,1.99586555,141.07,141.02,3.085]
[1642560356852,42.73725009,141.07,141.02,3.085]
[1642560357956,1.99586555,141.07,141.02,3.085]
[1642560358154,1.99586555,141.07,141.02,13.721]
[1642560358556,1.99586555,141.06,141.02,13.721]
[1642560358754,1.99586555,141.06,141.02,10.636]
[1642560358982,40.77790371,141.06,141.02,10.636]
[1642560359184,40.77790371,141.06,141.01,10.1]
[1642560359383,1.99586555,141.05,140.99,2.835]
[1642560359584,1.99586555,141.03,140.97,10.1]
[1642560359788,1.99586555,141.04,140.97,10.1]
[1642560360287,1.99586555,141.04,140.98,44.97409232]
[1642560360489,1.99586555,141.04,140.99,10.6384]
[1642560360683,1.99586555,141.04,140.99,20.9884]
[1642560362186,48.37781714,141.03,140.99,20.7384]
[1642560362387,48.37781714,141.03,140.99,10.1]
[1642560362586,0.25,141.02,140.98,2.836]
[1642560362787,50.37368269,141.03,140.97,10.6392]
[1642560362989,50.37368269,141.03,140.96,24.3111]
[1642560363186,1.99586555,141.03,140.97,1.31728177]
[1642560363386,1.99586555,141.03,140.97,11.41728177]
[1642560363586,1.99586555,141.03,140.98,10.639]
[1642560363787,1.99586555,141.04,140.98,20.739]
[1642560363990,1.99586555,141.04,140.99,0.25]
[1642560364188,1.99586555,141.04,140.99,45.21836049]
[1642560365191,1.99586555,141.04,141.0,10.6375]
[1642560365391,1.99586555,141.05,141.01,2.836]
[1642560365592,1.99586555,141.05,141.01,3.086]
[1642560365790,1.99586555,141.05,141.02,0.25]
[1642560365990,1.99586555,141.05,141.0,12.936]
[1642560366191,1.99586555,141.05,141.01,0.25]
[1642560366591,1.99586555,141.05,141.01,10.8865]
[1642560366990,1.99586555,141.06,141.02,10.1]
[1642560367392,1.99586555,141.07,141.02,10.1]
[1642560367593,6.0,141.06,141.03,35.75868885]
[1642560367794,6.0,141.06,141.03,46.39338885]
[1642560370194,1.99586555,141.07,141.04,0.25]
[1642560370395,1.99586555,141.08,141.05,10.6335]
[1642560370994,1.99586555,141.09,141.06,0.25]
[1642560371399,1.99586555,141.09,141.06,45.54522191]
[1642560371794,1.49586555,141.09,141.06,45.54522191]
[1642560371995,1.49586555,141.09,141.06,45.29522191]
[1642560372393,1.12169178,141.1,141.06,45.29522191]
[1642560373195,1.12169178,141.1,141.06,55.92822191]
[1642560374898,1.12169178,141.1,141.06,66.02822191]
[1642560375900,1.12169178,141.1,141.06,67.34550368]
[1642560376498,2.835,141.14,141.06,67.34550368]
[1642560376698,2.835,141.14,141.07,0.25]
[1642560376899,2.835,141.14,141.09,81.3786]
[1642560377098,2.835,141.14,141.1,10.1]
[1642560377298,2.835,141.14,141.11,2.834]
[1642560377498,2.835,141.14,141.12,39.33039685]
[1642560377697,2.835,141.14,141.13,2.834]
[1642560378100,2.835,141.14,141.13,3.084]
[1642560378503,46.92135004,141.19,141.13,13.7113]
[1642560378702,46.92135004,141.19,141.13,10.8773]
[1642560379300,46.92135004,141.19,141.14,0.25]
[1642560379499,46.92135004,141.19,141.14,10.6273]
[1642560379699,46.92135004,141.19,141.12,42.16339685]
[1642560379902,2.833,141.18,141.12,39.33039685]
[1642560380202,2.833,141.18,141.13,0.25]
[1642560380402,46.92135004,141.19,141.13,0.25]
[1642560381406,46.92135004,141.19,141.13,10.8781]
[1642560381905,57.54985004,141.19,141.13,10.6281]
[1642560382106,3.083,141.18,141.11,10.1]
[1642560382303,9.083,141.18,141.11,10.1]
[1642560382705,9.083,141.18,141.11,20.7295]
[1642560383503,19.7122,141.18,141.11,20.7295]
[1642560385806,19.7122,141.18,141.11,10.1]
[1642560387708,42.5652,141.18,141.11,10.1]
[1642560392314,42.5652,141.18,141.1,2.833]
[1642560392515,42.5652,141.18,141.09,10.631]
[1642560395223,42.5652,141.18,141.09,9.631]
[1642560396627,46.52939716,141.18,141.09,9.631]
[1642560397833,46.52939716,141.18,141.09,32.5844]
[1642560398826,46.52939716,141.18,141.09,9.631]
[1642560399728,35.002156,141.16,141.09,9.631]
[1642560399927,48.467056,141.16,141.09,9.631]
[1642560400128,0.25,141.15,141.09,9.631]
[1642560401749,45.633056,141.16,141.1,0.25]
[1642560401951,45.633056,141.16,141.1,2.834]
[1642560403058,45.633056,141.16,141.09,12.465]
[1642560403260,45.633056,141.16,141.1,0.25]
[1642560404952,45.633056,141.16,141.09,12.465]
[1642560405154,45.633056,141.16,141.09,9.631]
[1642560406354,0.25,141.15,141.09,9.631]
[1642560408458,10.8812,141.15,141.09,9.631]
[1642560408658,13.7152,141.15,141.09,9.631]
[1642560409360,17.67939716,141.15,141.09,9.631]
[1642560409761,17.67939716,141.15,141.08,10.6318]
[1642560409963,17.67939716,141.15,141.08,10.8818]
[1642560410460,40.92729716,141.15,141.08,10.8818]
[1642560410661,40.92729716,141.15,141.08,10.6318]
[1642560411261,16.6321,141.14,141.08,10.6318]
[1642560411761,44.45604073,141.13,141.08,10.6318]
[1642560414864,0.25,141.12,141.08,10.6318]
[1642560416768,44.45604073,141.13,141.08,10.6318]
[1642560417969,2.834,141.12,141.04,2.834]
[1642560418169,27.2287,141.12,141.03,37.2223]
[1642560419073,27.2287,141.12,141.1,0.49682471]
[1642560419272,6.06439994,141.11,141.1,0.49682471]
[1642560419472,38.89331041,141.1,141.05,10.634]
[1642560419672,41.97831041,141.1,141.03,24.2883]
[1642560419872,39.14331041,141.1,141.03,24.2883]
[1642560420174,39.14331041,141.1,141.01,12.935]
[1642560420378,25.4537,141.09,141.01,10.1]
[1642560420572,22.6187,141.09,141.01,10.1]
[1642560420772,22.6187,141.09,141.02,44.49039351]
[1642560421573,33.2549,141.09,141.03,0.25]
[1642560422076,38.89331041,141.1,141.03,0.25]
[1642560422275,1.59217179,141.12,141.03,1.56728177]
[1642560422574,1.59217179,141.12,141.03,25.66238177]
[1642560422575,6.0,141.11,141.03,25.66238177]
[1642560422978,1.59217179,141.12,141.03,25.66238177]
[1642560423574,1.59217179,141.12,141.03,36.29778177]
[1642560423776,1.59217179,141.12,141.04,2.835]
[1642560424174,1.59217179,141.12,141.05,0.25]
[1642560424376,1.59217179,141.12,141.06,2.835]
[1642560424576,50.01779243,141.12,141.06,2.835]
[1642560424777,50.01779243,141.12,141.07,0.25]
[1642560426602,50.01779243,141.12,141.07,10.8823]
[1642560429203,50.01779243,141.12,141.07,10.6323]
[1642560429404,2.834,141.11,141.03,37.0291]
[1642560429606,27.5104,141.11,141.03,34.1951]
[1642560430003,27.2604,141.11,141.03,34.1951]
[1642560430806,0.25,141.1,141.03,34.1951]
[1642560431007,43.97211548,141.08,141.04,10.634]
[1642560432404,43.97211548,141.08,141.05,0.25]
[1642560432804,43.97211548,141.08,141.03,34.1951]
[1642560433005,6.06439994,141.07,141.03,10.1]
[1642560433206,8.89939994,141.07,141.03,10.1]
[1642560434109,6.06439994,141.07,141.03,10.1]
[1642560438215,2.835,141.06,141.0,2.835]
[1642560438415,26.2048,141.06,141.0,2.835]
[1642560438616,37.6809279,141.05,141.0,2.835]
[1642560439914,40.5169279,141.05,140.99,20.7376]
[1642560440115,40.5169279,141.05,140.99,10.1]
[1642560440116,0.25,141.04,140.99,10.1]
[1642560440318,0.25,141.04,140.95,35.8574]
[1642560440517,29.0134,141.04,140.96,0.25]
[1642560440715,29.0134,141.04,140.95,35.8574]
[1642560440915,40.36977405,141.02,140.96,10.6405]
[1642560444323,40.36977405,141.02,140.96,49.99193333]
[1642560444622,2.836,141.03,140.97,0.25]
[1642560444822,33.4029,141.04,140.97,13.7251]
[1642560445524,73.54053481,141.04,140.97,13.7251]
[1642560448525,3.086,141.03,140.95,46.498]
[1642560448724,10.6414,141.02,140.95,43.662]
[1642560448923,10.6414,141.02,140.96,0.25]
[1642560449626,35.43065291,141.01,140.96,0.25]
[1642560455542,10.6414,141.02,140.96,0.25]
[1642560455742,2.836,141.03,140.96,10.8903]
[1642560455941,6.0,141.02,140.97,2.836]
[1642560456242,6.0,141.03,140.98,0.25]
[1642560456641,37.22703892,141.03,140.98,41.86389243]
[1642560457443,37.22703892,141.03,140.98,52.50269243]
[1642560457845,22.7634,141.04,140.98,52.50269243]
[1642560458042,10.6388,141.05,140.98,52.50269243]
[1642560458844,49.08053553,141.05,140.99,0.25]
[1642560459045,51.91653553,141.05,140.99,0.25]
[1642560460154,51.91653553,141.05,140.99,10.8883]
[1642560460662,51.91653553,141.05,140.99,10.6383]
[1642560461764,49.08053553,141.05,140.99,8.8956244]
[1642560462165,49.08053553,141.05,141.0,0.25]
[1642560462565,49.08053553,141.05,140.99,8.8956244]
[1642560462768,51.91653553,141.05,140.99,8.8956244]
[1642560464267,50.41653553,141.05,140.99,8.8956244]
[1642560467669,47.58053553,141.05,140.99,8.8956244]
[1642560468271,47.58053553,141.05,140.97,12.936]
[1642560468471,13.7258,141.04,140.97,10.1]
[1642560469072,36.9395,141.04,140.97,10.1]
[1642560469274,42.40126473,141.02,140.97,10.1]
[1642560469484,53.04246473,141.02,140.97,10.1]
[1642560469675,0.25,141.01,140.94,2.836]
[1642560469874,33.0147,141.01,140.92,33.5546]
[1642560470277,33.0147,141.01,140.92,10.1]
[1642560471477,10.6435,140.99,140.92,20.7435]
[1642560471677,47.48171703,140.98,140.92,20.7435]
[1642560471877,53.48171703,140.98,140.92,20.7435]
[1642560472378,53.48171703,140.98,140.92,10.1]
[1642560472579,50.64471703,140.98,140.92,10.1]
[1642560473379,44.64471703,140.98,140.92,10.1]
[1642560473579,55.28901703,140.98,140.92,10.1]
[1642560474782,55.03901703,140.98,140.92,10.1]
[1642560475382,58.74076797,140.98,140.92,10.1]
[1642560476083,58.74076797,140.98,140.93,0.25]
[1642560476284,58.74076797,140.98,140.92,2.837]
[1642560477483,58.74076797,140.98,140.92,49.11994806]
[1642560477689,3.70175094,140.98,140.93,0.25]
[1642560477887,26.7647,141.01,140.93,0.25]
[1642560478084,23.9277,141.01,140.94,1.31728177]
[1642560478284,0.25,141.0,140.94,11.41728177]
[1642560478488,2.837,141.02,140.95,0.25]
[1642560478685,36.48011323,141.02,140.96,10.6402]
[1642560478885,36.48011323,141.02,140.98,36.6525236]
[1642560479895,36.48011323,141.02,140.98,47.2917236]
[1642560482801,36.48011323,141.02,140.98,10.6392]
[1642560485001,13.4758,141.05,140.98,10.6392]
[1642560485200,10.6388,141.05,140.99,0.25]
[1642560485599,6.0,141.04,140.99,0.25]
[1642560486200,49.33041263,141.03,140.99,0.25]
[1642560486617,26.89736895,141.06,140.99,48.14969935]
[1642560486817,1.46866895,141.06,140.99,58.24969935]
[1642560487020,6.0,141.05,140.99,58.24969935]
[1642560487218,1.46866895,141.06,140.99,128.99969935]
[1642560487617,48.60015996,141.05,140.99,128.99969935]
[1642560487823,48.60015996,141.05,141.0,2.836]
[1642560488020,48.60015996,141.05,141.01,10.6357]
[1642560488220,48.60015996,141.05,141.01,10.8857]
[1642560489023,48.60015996,141.05,141.01,10.6357]
[1642560489623,48.60015996,141.05,140.99,23.5737]
[1642560489823,48.60015996,141.05,140.99,20.7377]
[1642560490123,0.25,141.04,140.99,20.7377]
[1642560493023,51.43615996,141.05,140.99,20.7377]
[1642560493225,0.25,141.04,140.99,20.7377]
[1642560493424,48.60015996,141.05,140.99,10.1]
[1642560495430,48.60015996,141.05,140.97,2.836]
[1642560495627,9.086,141.04,140.95,2.836]
[1642560495827,31.9215,141.04,140.94,12.936]
[1642560496028,31.9215,141.04,140.95,0.25]
[1642560496627,31.9215,141.04,140.94,51.73429548]
[1642560496831,31.9215,141.04,140.94,48.89829548]
[1642560497029,31.9215,141.04,140.95,2.837]
[1642560499532,31.9215,141.04,140.94,10.1]
[1642560499735,31.9215,141.04,140.95,0.25]
[1642560501032,31.9215,141.04,140.95,3.086]
[1642560502136,31.9215,141.04,140.96,41.96795358]
[1642560502334,31.6715,141.04,140.97,0.25]
[1642560502534,25.6715,141.04,140.96,41.96795358]
[1642560503338,25.6715,141.04,140.97,0.25]
[1642560503539,22.8355,141.04,140.97,0.25]
[1642560503737,48.60015996,141.05,140.97,0.25]
[1642560503938,51.43615996,141.05,140.97,2.836]
[1642560504146,51.43615996,141.05,140.97,3.086]
[1642560507443,48.60015996,141.05,140.97,3.086]
[1642560512551,48.60015996,141.05,141.0,47.17354586]
[1642560512779,12.10686895,141.06,141.0,47.17354586]
[1642560512980,6.25,141.05,141.0,47.17354586]
[1642560513380,0.25,141.05,141.0,47.17354586]
[1642560517085,53.48995413,141.06,141.0,57.81104586]
[1642560517284,1.46866895,141.06,141.01,71.0]
[1642560518285,1.46866895,141.06,141.01,81.6365]
[1642560520190,1.46866895,141.06,141.02,2.836]
[1642560520487,1.46866895,141.06,141.03,54.83655113]
[1642560521892,1.46866895,141.06,141.04,0.25]
[1642560522090,1.46866895,141.06,141.04,13.7193]
[1642560523392,1.46866895,141.06,141.04,13.4693]
[1642560523595,1.46866895,141.06,141.04,2.835]
[1642560523791,1.46866895,141.06,141.03,54.83675113]
[1642560524793,1.46866895,141.06,141.04,3.085]
[1642560525197,1.46866895,141.06,141.04,13.7192]
[1642560525996,1.46866895,141.06,141.04,13.4692]
[1642560527195,1.46866895,141.06,141.04,10.6342]
[1642560528899,1.46866895,141.06,141.04,13.4692]
[1642560530001,1.46866895,141.06,141.04,10.6342]
[1642560530202,24.9724,141.09,141.05,0.25]
[1642560530405,5.23354877,141.11,141.05,3.085]
[1642560530604,1.53058702,141.11,141.05,10.8835]
[1642560530802,1.53058702,141.11,141.05,10.6335]
[1642560531204,46.58378531,141.1,141.05,10.6335]
[1642560536436,46.58378531,141.1,141.06,2.835]
[1642560536637,46.58378531,141.1,141.06,42.70999135]
[1642560537036,46.58378531,141.1,141.06,53.34269135]
[1642560537638,46.58378531,141.1,141.06,13.4677]
[1642560537837,46.58378531,141.1,141.06,2.835]
[1642560538040,46.58378531,141.1,141.03,2.835]
[1642560538237,46.58378531,141.1,141.03,3.085]
[1642560538639,1.53058702,141.11,141.03,3.085]
[1642560538840,1.9725917,141.13,141.05,10.6336]
[1642560539040,6.0,141.12,141.06,2.835]
[1642560539240,6.25,141.12,141.06,2.835]
[1642560539442,6.25,141.12,141.05,2.835]
[1642560539642,42.41484831,141.11,141.06,41.85080284]
[1642560540442,6.0,141.12,141.07,0.25]
[1642560540646,1.9725917,141.13,141.07,9.084]
[1642560540843,5.67523969,141.14,141.07,9.084]
[1642560541045,1.9725917,141.14,141.07,9.084]
[1642560541243,0.25,141.13,141.07,9.084]
[1642560541445,47.03860131,141.13,141.07,9.084]
[1642560541843,47.03860131,141.13,141.07,3.084]
[1642560542043,47.03860131,141.13,141.07,13.7157]
[1642560542443,47.03860131,141.13,141.07,13.4657]
[1642560542646,49.01119301,141.13,141.07,13.4657]
[1642560542844,47.03860131,141.13,141.07,13.4657]
[1642560545448,57.67150131,141.13,141.06,41.85080284]
[1642560545749,59.64409301,141.13,141.05,13.4669]
[1642560545947,31.3974917,141.12,141.05,10.6329]
[1642560546147,1.9725917,141.11,141.06,2.835]
[1642560546347,31.3974917,141.12,141.06,2.835]
[1642560546649,23.4249,141.12,141.07,43.7940766]
[1642560546847,23.4249,141.12,141.07,44.0440766]
[1642560547051,23.4249,141.12,141.07,43.7940766]
[1642560548049,26.2589,141.12,141.07,43.7940766]
[1642560548450,28.2314917,141.12,141.07,43.7940766]
[1642560549049,2.2225917,141.11,141.07,43.7940766]
[1642560549251,2.835,141.1,141.07,43.7940766]
[1642560549653,28.2324917,141.12,141.07,43.7940766]
[1642560550052,0.25,141.11,141.07,43.7940766]
[1642560550452,28.2324917,141.12,141.07,43.7940766]
[1642560550654,25.3974917,141.12,141.07,43.7940766]
[1642560551254,28.2314917,141.12,141.07,43.7940766]
[1642560551454,38.8651917,141.12,141.07,43.7940766]
[1642560551654,2.2225917,141.11,141.07,43.7940766]
[1642560555061,2.2225917,141.11,141.04,20.7342]
[1642560555659,12.8568917,141.11,141.04,20.7342]
[1642560555861,1.9725917,141.1,141.03,2.834]
[1642560556063,44.88533106,141.09,141.03,43.55749564]
[1642560556261,45.13533106,141.09,141.03,43.55749564]
[1642560557461,55.77123106,141.09,141.03,43.55749564]
[1642560559269,55.77123106,141.09,141.02,10.6351]
[1642560559470,57.74382276,141.09,141.03,0.25]
[1642560559769,55.77123106,141.09,141.01,2.835]
[1642560559970,79.585,141.08,140.98,1.99942852]
[1642560560171,10.6403,141.05,140.96,12.09942852]
[1642560560370,71.06241655,141.04,140.97,44.54543024]
[1642560560569,68.47641655,141.04,140.97,44.54543024]
[1642560560871,23.4468,141.04,140.98,2.836]
[1642560561174,10.6381,141.06,140.99,0.25]
[1642560561469,32.4832917,141.08,141.0,2.836]
[1642560561669,24.1772,141.07,141.0,2.836]
[1642560561869,40.52155906,141.06,141.01,38.16068403]
[1642560562069,40.52155906,141.06,140.98,3.086]
[1642560562270,0.25,141.05,140.98,0.25]
[1642560562872,0.25,141.05,140.99,10.6377]
[1642560563071,24.665,141.05,140.99,10.6377]
[1642560563272,24.665,141.05,140.99,54.1859188]
[1642560565497,24.665,141.05,140.99,10.6377]
[1642560565702,24.665,141.05,140.98,10.6386]
[1642560565899,27.501,141.05,140.96,12.936]
[1642560566501,6.0,141.04,140.96,12.936]
[1642560566701,10.6411,141.02,140.96,12.936]
[1642560566899,10.6411,141.02,140.96,10.1]
[1642560566900,34.12,141.02,140.96,10.1]
[1642560567100,0.25,141.01,140.96,10.1]
[1642560569400,10.8918,141.01,140.96,10.1]
[1642560570203,10.8918,141.01,140.94,2.837]
[1642560570402,10.6434,140.99,140.93,10.1]
[1642560570601,2.837,140.98,140.92,10.6426]
[1642560570801,41.01755209,140.98,140.93,2.837]
[1642560571002,41.01755209,140.98,140.92,62.75550863]
[1642560571901,10.6434,140.99,140.92,62.75550863]
[1642560572102,10.6434,140.99,140.93,0.25]
[1642560572301,10.6426,141.0,140.94,2.837]
[1642560572501,10.6426,141.0,140.93,3.087]
[1642560572701,0.25,140.99,140.93,3.087]
[1642560575104,0.25,140.99,140.93,0.25]
[1642560575806,24.8769,140.99,140.93,0.25]
[1642560576307,24.8769,140.99,140.92,38.1079]
[1642560576508,24.8769,140.99,140.91,10.1]
[1642560576509,8.837,140.98,140.91,10.1]
[1642560576713,0.25,140.97,140.88,12.937]
[1642560576909,23.2123,140.97,140.88,10.1]
[1642560577114,8.838,140.96,140.85,10.1]
[1642560577310,47.54612182,140.95,140.85,10.1]
[1642560577512,10.6497,140.93,140.85,10.1]
[1642560577711,3.089,140.92,140.85,10.1]
[1642560577915,13.146,140.92,140.82,10.65]
[1642560578113,8.839,140.91,140.81,12.938]
[1642560578311,0.25,140.9,140.81,12.938]
[1642560578511,48.38128496,140.88,140.81,58.46775783]
[1642560579214,48.38128496,140.88,140.82,0.25]
[1642560579413,48.38128496,140.88,140.82,10.9007]
[1642560579913,48.38128496,140.88,140.82,10.6507]
[1642560580512,59.03298496,140.88,140.81,23.5895]
[1642560580713,0.25,140.87,140.81,20.7515]
[1642560580911,6.25,140.87,140.81,20.7515]
[1642560582412,0.25,140.87,140.82,38.87995593]
[1642560582814,0.25,140.87,140.81,20.7515]
[1642560587720,1.15038579,140.9,140.82,0.25]
[1642560587919,2.839,140.92,140.84,10.6491]
[1642560588118,6.0,140.91,140.85,10.1]
[1642560588319,6.0,140.91,140.85,10.35]
[1642560588620,6.0,140.93,140.85,10.35]
[1642560588819,45.59269723,140.92,140.85,10.1]
[1642560589020,48.43169723,140.92,140.85,10.1]
[1642560589221,45.59269723,140.92,140.83,2.839]
[1642560589423,8.839,140.91,140.82,12.939]
[1642560589621,6.0,140.91,140.83,0.25]
[1642560589823,8.839,140.91,140.83,0.25]
[1642560590022,8.839,140.91,140.84,10.6493]
[1642560590622,8.839,140.91,140.85,0.25]
[1642560590824,56.24139723,140.92,140.85,0.25]
[1642560591025,56.24139723,140.92,140.84,2.839]
[1642560591223,0.25,140.91,140.84,2.839]
[1642560591422,0.25,140.91,140.85,0.25]
[1642560592026,56.24139723,140.92,140.85,0.25]
[1642560592230,56.24139723,140.92,140.84,0.25]
[1642560592427,0.25,140.91,140.85,13.4875]
[1642560592627,0.25,140.91,140.85,10.6485]
[1642560593027,10.8994,140.91,140.83,2.839]
[1642560593230,13.7384,140.91,140.83,2.839]
[1642560594028,6.0,140.9,140.83,13.489]
[1642560594428,13.7384,140.91,140.83,13.489]
[1642560594630,13.7384,140.91,140.84,0.25]
[1642560598334,13.7384,140.91,140.83,10.65]
[1642560598534,13.7384,140.91,140.81,84.2398]
[1642560598535,6.0,140.9,140.81,84.2398]
[1642560598736,3.089,140.89,140.82,0.25]
[1642560599459,2.839,140.89,140.82,0.25]
[1642560599662,2.839,140.89,140.82,10.9006]
[1642560600063,48.43169723,140.92,140.83,2.839]
[1642560600261,0.25,140.91,140.84,0.25]
[1642560600460,6.25,140.91,140.84,0.25]
[1642560600661,6.25,140.91,140.83,2.839]
[1642560600861,6.25,140.91,140.82,2.839]
[1642560601063,6.25,140.91,140.82,3.089]
[1642560601462,16.8995,140.91,140.83,10.6493]
[1642560601660,16.8995,140.91,140.84,2.839]
[1642560602963,3.70516156,140.9,140.84,2.839]
[1642560603364,3.70516156,140.9,140.84,13.4882]
[1642560605265,14.35546156,140.9,140.83,2.839]
[1642560605464,0.25,140.89,140.82,10.6501]
[1642560606064,6.54416156,140.9,140.82,10.6501]
[1642560606264,3.70516156,140.9,140.83,2.839]
[1642560606465,3.70516156,140.9,140.84,10.6491]
[1642560606670,3.70516156,140.9,140.84,10.8991]
[1642560607275,3.70516156,140.9,140.84,10.6491]
[1642560609473,3.70516156,140.9,140.85,42.17381071]
[1642560609675,3.70516156,140.9,140.85,52.82241071]
[1642560609973,45.59269723,140.92,140.85,52.82241071]
[1642560610178,1.50802362,140.94,140.86,70.75]
[1642560610380,4.8115917,140.96,140.86,89.689]
[1642560610577,1.9725917,140.97,140.88,10.6455]
[1642560610781,5.67722105,140.97,140.89,3.088]
[1642560610978,4.8105917,140.98,140.89,3.088]
[1642560611178,39.67850314,140.97,140.9,45.16703167]
[1642560611578,39.67850314,140.97,140.91,0.25]
[1642560611978,1.9725917,140.98,140.91,10.8941]
[1642560612177,55.67959964,140.99,140.92,2.837]
[1642560612178,1.9725917,140.99,140.92,2.837]
[1642560612378,1.9725917,141.0,140.92,8.837]
[1642560612577,76.8733917,141.01,140.93,0.25]
[1642560612783,1.9725917,141.01,140.93,0.25]
[1642560613076,35.24890178,141.0,140.93,0.25]
[1642560613281,38.33590178,141.0,140.93,0.25]
[1642560614280,38.33590178,141.0,140.92,2.837]
[1642560614481,38.33590178,141.0,140.91,12.937]
[1642560614680,6.0,140.99,140.91,20.7441]
[1642560614879,2.837,140.98,140.91,20.7441]
[1642560615079,3.087,140.98,140.91,20.7441]
[1642560615479,3.087,140.98,140.92,0.25]
[1642560615683,0.25,140.98,140.92,0.25]
[1642560616481,10.8945,140.98,140.92,0.25]
[1642560617482,10.8945,140.98,140.91,20.7441]
[1642560617682,10.6457,140.96,140.88,2.837]
[1642560617890,2.838,140.95,140.87,10.1]
[1642560618086,6.0,140.95,140.87,10.1]
[1642560618586,46.19460637,140.94,140.87,46.27940253]
[1642560618985,46.19460637,140.94,140.87,10.1]
[1642560619689,56.84190637,140.94,140.87,10.1]
[1642560620188,56.84190637,140.94,140.88,0.25]
[1642560620788,56.84190637,140.94,140.85,10.35]
[1642560620986,59.68090637,140.94,140.86,2.838]
[1642560621189,56.84190637,140.94,140.87,0.25]
[1642560622789,56.84190637,140.94,140.86,13.4856]
[1642560622994,3.088,140.93,140.86,10.6476]
[1642560624595,0.25,140.93,140.86,13.4856]
[1642560624799,0.25,140.93,140.87,0.25]
[1642560624992,10.6473,140.94,140.87,10.8968]
[1642560625193,2.838,140.95,140.87,10.8968]
[1642560625420,38.1956,140.96,140.88,2.838]
[1642560625624,24.7113,140.96,140.88,2.838]
[1642560625920,60.57610721,140.96,140.89,37.97734225]
[1642560626321,35.86480721,140.96,140.89,37.97734225]
[1642560626920,35.86480721,140.96,140.89,48.62264225]
[1642560627821,0.25,140.95,140.88,2.838]
[1642560628021,2.838,140.95,140.87,10.1]
[1642560628226,35.86480721,140.96,140.88,2.838]
[1642560628422,35.86480721,140.96,140.88,4.16487725]